[Event "44th Chess Olympiad Open 2022"]
[Site "Chennai"]
[Date "2022.08.01"]
[Round "4.66"]
[White "Christie, Joshua"]
[Black "Khan, Taffin"]
[Result "1-0"]
[WhiteElo "2272"]
[BlackElo "2019"]
[Annotator "NA RC"]
[PlyCount "63"]
[EventDate "2022.??.??"]
[TimeControl "60"]

1. d4 {[%emt 0:00:26]} Nf6 {[%emt 0:00:06]} 2. c4 {[%emt 0:00:24]} e6 {[%emt 0:
00:00]} 3. g3 {[%emt 0:00:27]} d5 {[%emt 0:01:44]} 4. Bg2 {[%emt 0:00:44]} c6 {
[%emt 0:00:38]} 5. Nf3 {[%emt 0:02:05]} Bd6 {[%emt 0:03:50]} 6. Qc2 {[%emt 0:
00:00]} Nbd7 {[%emt 0:00:22]} 7. O-O {[%emt 0:02:11]} O-O {[%emt 0:00:12]} 8.
Nbd2 {[%emt 0:00:55]} Qe7 {[%emt 0:13:15]} 9. Re1 {[%emt 0:03:45]} Bb4 {
[%emt 0:05:15]} 10. a3 {[%emt 0:06:04]} Bxd2 {[%emt 0:00:11]} 11. Bxd2 {
[%emt 0:00:58]} Ne4 {[%emt 0:00:07]} 12. Bb4 {[%emt 0:03:29]} c5 {[%emt 0:00:
00]} 13. dxc5 {[%emt 0:06:14]} a5 {[%emt 0:00:08]} 14. Bc3 {[%emt 0:09:03]}
Qxc5 {[%emt 0:04:18]} 15. Bd4 {[%emt 0:01:03]} Qc7 {[%emt 0:10:21]} 16. Rac1 {
[%emt 0:03:36]} e5 {[%emt 0:08:04]} 17. Nxe5 {[%emt 0:09:05]} Nxe5 {[%emt 0:00:
00]} 18. cxd5 {[%emt 0:00:08]} Qxc2 {[%emt 0:04:56]} 19. Rxc2 {[%emt 0:00:09]}
Bf5 {[%emt 0:00:06]} 20. Bxe5 {[%emt 0:00:36]} Rfe8 {[%emt 0:00:10]} 21. Bc7 {
[%emt 0:09:31]} Nxf2 {[%emt 0:05:34]} 22. Rd2 {[%emt 0:03:46]} Ne4 {[%emt 0:00:
00]} 23. Rd4 {[%emt 0:03:17]} Nc5 {[%emt 0:04:46]} 24. Rc4 {[%emt 0:03:01]} Nd3
{[%emt 0:10:36]} 25. Rf1 {[%emt 0:01:24]} Nxb2 {[%emt 0:01:05]} 26. Rcf4 {
[%emt 0:01:13]} Bg6 {[%emt 0:08:45]} 27. d6 {[%emt 0:01:54]} Rxe2 {[%emt 0:00:
00]} 28. R4f2 {[%emt 0:03:56]} Rxf2 {[%emt 0:02:55]} 29. Rxf2 {[%emt 0:00:25]}
Nd3 {[%emt 0:00:07]} 30. d7 {[%emt 0:04:42]} Nxf2 {[%emt 0:02:08]} 31. Kxf2 {
[%emt 0:00:09]} Bf5 {[%emt 0:00:52]} 32. Bxb7 {[%emt 0:01:10]} 1-0

[Event "44th Chess Olympiad Open 2022"]
[Site "Chennai"]
[Date "2022.08.01"]
[Round "4.66"]
[White "Shaw, Jaden"]
[Black "Nathoo, Loris"]
[Result "1-0"]
[WhiteElo "1930"]
[BlackElo "1695"]
[Annotator "NA RC"]
[PlyCount "59"]
[EventDate "2022.??.??"]
[TimeControl "60"]

1. e4 {[%emt 0:00:01]} d6 {[%emt 0:00:06]} 2. d4 {[%emt 0:01:10]} Nf6 {[%emt 0:
00:00]} 3. Nc3 {[%emt 0:00:19]} g6 {[%emt 0:00:43]} 4. f3 {[%emt 0:00:49]} Bg7
{[%emt 0:02:44]} 5. Be3 {[%emt 0:00:41]} Nbd7 {[%emt 0:06:57]} 6. Qd2 {[%emt 0:
00:00]} h6 {[%emt 0:08:22]} 7. Bc4 {[%emt 0:01:26]} c6 {[%emt 0:01:16]} 8. a4 {
[%emt 0:01:49]} Qa5 {[%emt 0:03:57]} 9. Nge2 {[%emt 0:01:34]} Qb4 {[%emt 0:00:
00]} 10. Bb3 {[%emt 0:01:54]} Qa5 {[%emt 0:07:00]} 11. O-O {[%emt 0:02:20]} a6
{[%emt 0:09:17]} 12. Kh1 {[%emt 0:04:04]} c5 {[%emt 0:07:39]} 13. f4 {[%emt 0:
00:00]} cxd4 {[%emt 0:06:08]} 14. Nxd4 {[%emt 0:01:19]} Qh5 {[%emt 0:05:02]}
15. Nf3 {[%emt 0:04:58]} Nc5 {[%emt 0:01:12]} 16. Bd5 {[%emt 0:03:13]} e6 {
[%emt 0:07:44]} 17. Bxc5 {[%emt 0:02:34]} dxc5 {[%emt 0:00:05]} 18. Bc4 {
[%emt 0:00:15]} Ng4 {[%emt 0:05:02]} 19. Kg1 {[%emt 0:01:25]} Bd4+ {[%emt 0:00:
00]} 20. Kh1 {[%emt 0:00:59]} Ne3 {[%emt 0:02:49]} 21. Be2 {[%emt 0:03:14]}
Nxf1 {[%emt 0:00:09]} 22. Rxf1 {[%emt 0:00:02]} Bxc3 {[%emt 0:00:45]} 23. Qxc3
{[%emt 0:00:34]} O-O {[%emt 0:00:16]} 24. Qf6 {[%emt 0:04:28]} c4 {[%emt 0:00:
00]} 25. Bxc4 {[%emt 0:02:06]} Qc5 {[%emt 0:00:08]} 26. Ne5 {[%emt 0:00:48]}
Kh7 {[%emt 0:02:42]} 27. f5 {[%emt 0:02:21]} gxf5 {[%emt 0:07:26]} 28. Nxf7 {
[%emt 0:00:33]} Qxc4 {[%emt 0:00:48]} 29. Qxh6+ {[%emt 0:00:15]} Kg8 {[%emt 0:
00:00]} 30. Qg6# {[%emt 0:00:10]} 1-0

[Event "44th Chess Olympiad Open 2022"]
[Site "Chennai"]
[Date "2022.08.01"]
[Round "4.66"]
[White "Drayton, Anthony"]
[Black "Lorne, Ras Malaku"]
[Result "0-1"]
[WhiteElo "1928"]
[BlackElo "2079"]
[Annotator "NA RC"]
[PlyCount "92"]
[EventDate "2022.??.??"]
[TimeControl "60"]

1. d4 {[%emt 0:00:59]} Nf6 {[%emt 0:00:24]} 2. Bf4 {[%emt 0:01:13]} d5 {
[%emt 0:01:22]} 3. e3 {[%emt 0:00:24]} e6 {[%emt 0:05:51]} 4. Nf3 {[%emt 0:00:
00]} c5 {[%emt 0:01:20]} 5. c3 {[%emt 0:02:38]} Nc6 {[%emt 0:00:31]} 6. Nbd2 {
[%emt 0:00:47]} h6 {[%emt 0:02:11]} 7. Ne5 {[%emt 0:02:53]} Bd6 {[%emt 0:06:38]
} 8. Bg3 {[%emt 0:02:12]} cxd4 {[%emt 0:06:26]} 9. exd4 {[%emt 0:00:38]} Bxe5 {
[%emt 0:09:54]} 10. dxe5 {[%emt 0:00:46]} Nd7 {[%emt 0:00:08]} 11. f4 {[%emt 0:
00:00]} Qb6 {[%emt 0:02:11]} 12. Qg4 {[%emt 0:15:17]} Qxb2 {[%emt 0:06:13]} 13.
Rb1 {[%emt 0:00:09]} Qxc3 {[%emt 0:00:27]} 14. Qxg7 {[%emt 0:00:16]} Rf8 {
[%emt 0:00:37]} 15. Bb5 {[%emt 0:10:41]} Nc5 {[%emt 0:11:54]} 16. O-O {[%emt 0:
00:00]} Qxd2 {[%emt 0:14:31]} 17. Bh4 {[%emt 0:00:32]} Ne4 {[%emt 0:04:23]} 18.
Rbe1 {[%emt 0:03:06]} Bd7 {[%emt 0:07:54]} 19. Re2 {[%emt 0:13:30]} Qb4 {
[%emt 0:01:08]} 20. Bxc6 {[%emt 0:03:11]} bxc6 {[%emt 0:02:41]} 21. Qxh6 {
[%emt 0:04:18]} Rg8 {[%emt 0:03:30]} 22. Qh5 {[%emt 0:08:19]} Rb8 {[%emt 0:00:
00]} 23. f5 {[%emt 0:04:25]} Qd4+ {[%emt 0:02:46]} 24. Bf2 {[%emt 0:02:31]}
Nxf2 {[%emt 0:00:42]} 25. Rexf2 {[%emt 0:00:45]} exf5 {[%emt 0:00:21]} 26. Qh7
{[%emt 0:01:02]} Ke7 {[%emt 0:00:58]} 27. Qh3 {[%emt 0:01:38]} a5 {[%emt 0:00:
00]} 28. Qa3+ {[%emt 0:01:56]} Qb4 {[%emt 0:00:11]} 29. Qd3 {[%emt 0:00:28]}
Rg5 {[%emt 0:00:34]} 30. Rf4 {[%emt 0:01:31]} Qc5+ {[%emt 0:00:42]} 31. Kh1 {
[%emt 0:00:58]} Be6 {[%emt 0:01:00]} 32. R4f2 {[%emt 0:01:00]} Rb4 {[%emt 0:00:
00]} 33. Rc2 {[%emt 0:04:00]} Qb5 {[%emt 0:00:38]} 34. Qf3 {[%emt 0:02:58]} Rb1
{[%emt 0:02:53]} 35. Rfc1 {[%emt 0:01:21]} Rxc1+ {[%emt 0:00:00]} 36. Rxc1 {
[%emt 0:00:05]} Qb2 {[%emt 0:00:00]} 37. Rg1 {[%emt 0:00:24]} Qxe5 {[%emt 0:00:
00]} 38. Qa3+ {[%emt 0:00:14]} Qd6 {[%emt 0:01:15]} 39. Qxa5 {[%emt 0:00:29]}
d4 {[%emt 0:00:15]} 40. Qd2 {[%emt 0:02:42]} f4 {[%emt 0:00:28]} 41. a4 {
[%emt 0:30:46]} Bd5 {[%emt 0:30:57]} 42. a5 {[%emt 0:03:26]} c5 {[%emt 0:02:01]
} 43. Qe1+ {[%emt 0:01:22]} Kf8 {[%emt 0:00:00]} 44. Qh4 {[%emt 0:00:00]} Qg6 {
[%emt 0:00:00]} 45. a6 {[%emt 0:00:00]} Bxg2+ {[%emt 0:00:00]} 46. Rxg2 {
[%emt 0:00:00]} Qb1+ {[%emt 0:00:00]} 0-1

[Event "44th Chess Olympiad Open 2022"]
[Site "Chennai"]
[Date "2022.08.01"]
[Round "4.66"]
[White "Neto, Roberto"]
[Black "McDonald, Jhustice-Dimonte"]
[Result "0-1"]
[WhiteElo "1663"]
[BlackElo "1884"]
[Annotator "NA RC"]
[PlyCount "80"]
[EventDate "2022.??.??"]
[TimeControl "60"]

1. d4 {[%emt 0:00:32]} Nf6 {[%emt 0:00:10]} 2. Bf4 {[%emt 0:00:40]} e6 {
[%emt 0:00:10]} 3. e3 {[%emt 0:00:44]} d5 {[%emt 0:00:18]} 4. Nd2 {[%emt 0:00:
00]} Bd6 {[%emt 0:00:52]} 5. Bg3 {[%emt 0:00:19]} O-O {[%emt 0:02:40]} 6. Bd3 {
[%emt 0:08:28]} Nc6 {[%emt 0:03:50]} 7. c3 {[%emt 0:09:14]} e5 {[%emt 0:01:03]}
8. dxe5 {[%emt 0:03:10]} Nxe5 {[%emt 0:00:38]} 9. Bxe5 {[%emt 0:01:26]} Bxe5 {
[%emt 0:00:07]} 10. Ngf3 {[%emt 0:00:05]} Bd6 {[%emt 0:00:48]} 11. Qc2 {
[%emt 0:00:26]} c5 {[%emt 0:05:00]} 12. O-O {[%emt 0:08:34]} Re8 {[%emt 0:00:
00]} 13. Bf5 {[%emt 0:02:51]} Bd7 {[%emt 0:16:21]} 14. Bxd7 {[%emt 0:03:06]}
Qxd7 {[%emt 0:00:12]} 15. c4 {[%emt 0:07:55]} Rad8 {[%emt 0:18:00]} 16. cxd5 {
[%emt 0:04:30]} Nxd5 {[%emt 0:01:04]} 17. Ng5 {[%emt 0:04:21]} Nf6 {[%emt 0:00:
00]} 18. Nge4 {[%emt 0:01:47]} Nxe4 {[%emt 0:00:10]} 19. Nxe4 {[%emt 0:00:09]}
Qf5 {[%emt 0:02:10]} 20. f3 {[%emt 0:03:42]} Qe5 {[%emt 0:04:29]} 21. g3 {
[%emt 0:03:35]} f5 {[%emt 0:05:11]} 22. Nxd6 {[%emt 0:02:40]} Qxe3+ {[%emt 0:
00:00]} 23. Kh1 {[%emt 0:00:06]} Rxd6 {[%emt 0:00:32]} 24. Rae1 {[%emt 0:03:36]
} Qxe1 {[%emt 0:00:18]} 25. Rxe1 {[%emt 0:00:04]} Rxe1+ {[%emt 0:00:10]} 26.
Kg2 {[%emt 0:00:15]} Red1 {[%emt 0:02:04]} 27. Qxf5 {[%emt 0:01:55]} R1d2+ {
[%emt 0:06:45]} 28. Kg1 {[%emt 0:01:56]} b6 {[%emt 0:10:07]} 29. Qe5 {[%emt 0:
00:00]} Rd8 {[%emt 0:01:21]} 30. a3 {[%emt 0:04:20]} Rc2 {[%emt 0:00:50]} 31.
Qe6+ {[%emt 0:01:43]} Kh8 {[%emt 0:00:02]} 32. Qe1 {[%emt 0:01:12]} Rxb2 {
[%emt 0:00:30]} 33. h4 {[%emt 0:01:13]} c4 {[%emt 0:00:40]} 34. h5 {[%emt 0:00:
00]} h6 {[%emt 0:00:35]} 35. g4 {[%emt 0:00:32]} Rbd2 {[%emt 0:01:22]} 36. Qe5
{[%emt 0:01:04]} Ra2 {[%emt 0:01:19]} 37. Qe1 {[%emt 0:00:22]} c3 {[%emt 0:00:
00]} 38. g5 {[%emt 0:00:43]} c2 {[%emt 0:00:50]} 39. Qe3 {[%emt 0:02:21]} Rd1+
{[%emt 0:00:23]} 40. Kg2 {[%emt 0:00:17]} c1=Q+ {[%emt 0:00:02]} 0-1

[Event "44th Chess Olympiad Open 2022"]
[Site "Chennai"]
[Date "2022.08.01"]
[Round "4.67"]
[White "Gong Thon Gong"]
[Black "Ashraf, Ahmed Ramadan"]
[Result "1-0"]
[WhiteElo "2176"]
[BlackElo "1916"]
[Annotator "NA RC"]
[PlyCount "105"]
[EventDate "2022.??.??"]
[TimeControl "60"]

1. e4 {[%emt 0:00:05]} e5 {[%emt 0:00:02]} 2. Nf3 {[%emt 0:00:05]} Nc6 {
[%emt 0:00:08]} 3. Bc4 {[%emt 0:00:05]} Nf6 {[%emt 0:00:20]} 4. O-O {[%emt 0:
00:00]} Be7 {[%emt 0:00:12]} 5. d4 {[%emt 0:00:10]} d6 {[%emt 0:02:18]} 6. d5 {
[%emt 0:00:19]} Nb8 {[%emt 0:00:17]} 7. Re1 {[%emt 0:00:05]} Bg4 {[%emt 0:00:
00]} 8. h3 {[%emt 0:00:02]} Bh5 {[%emt 0:00:59]} 9. Nbd2 {[%emt 0:00:02]} O-O {
[%emt 0:00:49]} 10. Nf1 {[%emt 0:00:01]} Nbd7 {[%emt 0:01:25]} 11. Ng3 {
[%emt 0:00:02]} Bg6 {[%emt 0:00:22]} 12. Nh4 {[%emt 0:00:37]} c6 {[%emt 0:00:
00]} 13. dxc6 {[%emt 0:00:21]} bxc6 {[%emt 0:00:04]} 14. Nhf5 {[%emt 0:01:02]}
d5 {[%emt 0:00:55]} 15. exd5 {[%emt 0:00:10]} cxd5 {[%emt 0:04:04]} 16. Bxd5 {
[%emt 0:00:10]} Rc8 {[%emt 0:00:19]} 17. Bb3 {[%emt 0:01:15]} Bc5 {[%emt 0:00:
00]} 18. Be3 {[%emt 0:00:10]} Qc7 {[%emt 0:02:33]} 19. Qe2 {[%emt 0:02:58]} Nh5
{[%emt 0:08:26]} 20. Bxc5 {[%emt 0:01:41]} Qxc5 {[%emt 0:01:11]} 21. Nxh5 {
[%emt 0:00:51]} Bxf5 {[%emt 0:02:52]} 22. Ng3 {[%emt 0:00:13]} Bg6 {[%emt 0:00:
00]} 23. Rad1 {[%emt 0:00:11]} Rcd8 {[%emt 0:01:17]} 24. h4 {[%emt 0:00:11]} h6
{[%emt 0:00:31]} 25. h5 {[%emt 0:00:03]} Bh7 {[%emt 0:00:49]} 26. Rd5 {[%emt 0:
00:00]} Qc7 {[%emt 0:00:36]} 27. Qe3 {[%emt 0:01:12]} e4 {[%emt 0:01:21]} 28.
Rd4 {[%emt 0:04:59]} Nf6 {[%emt 0:09:06]} 29. Rc4 {[%emt 0:00:49]} Qb8 {
[%emt 0:01:58]} 30. Qc5 {[%emt 0:06:00]} Rc8 {[%emt 0:06:59]} 31. Qb4 {[%emt 0:
00:00]} Qe5 {[%emt 0:02:05]} 32. Qc3 {[%emt 0:01:49]} Qb8 {[%emt 0:00:49]} 33.
Rd1 {[%emt 0:00:33]} Rxc4 {[%emt 0:02:00]} 34. Qxc4 {[%emt 0:00:03]} e3 {
[%emt 0:00:29]} 35. fxe3 {[%emt 0:02:20]} Bxc2 {[%emt 0:03:38]} 36. Bxc2 {
[%emt 0:02:32]} Qxg3 {[%emt 0:05:25]} 37. Qf4 {[%emt 0:00:08]} Qxf4 {[%emt 0:
00:00]} 38. exf4 {[%emt 0:00:01]} Nxh5 {[%emt 0:01:00]} 39. Rd7 {[%emt 0:00:08]
} Nxf4 {[%emt 0:01:02]} 40. Rxa7 {[%emt 0:00:06]} Rd8 {[%emt 0:05:51]} 41. Bb3
{[%emt 0:30:17]} Rd2 {[%emt 0:30:34]} 42. Rxf7 {[%emt 0:03:32]} Ne2+ {[%emt 0:
00:00]} 43. Kh2 {[%emt 0:00:16]} Nd4 {[%emt 0:03:32]} 44. Rb7+ {[%emt 0:00:27]}
Kf8 {[%emt 0:01:51]} 45. Bd5 {[%emt 0:00:19]} Ne2 {[%emt 0:02:09]} 46. Bc4 {
[%emt 0:01:35]} Nd4 {[%emt 0:01:05]} 47. a4 {[%emt 0:01:14]} Nf3+ {[%emt 0:00:
00]} 48. Kg3 {[%emt 0:00:16]} Ne5 {[%emt 0:00:14]} 49. Bf1 {[%emt 0:00:44]} g5
{[%emt 0:03:06]} 50. a5 {[%emt 0:00:22]} Rd1 {[%emt 0:00:00]} 51. Be2 {[%emt 0:
00:00]} Rd2 {[%emt 0:00:00]} 52. a6 {[%emt 0:00:00]} Rd7 {[%emt 0:06:53]} 53.
a7 {[%emt 0:00:00]} 1-0

[Event "44th Chess Olympiad Open 2022"]
[Site "Chennai"]
[Date "2022.08.01"]
[Round "4.67"]
[White "Fuad, Ahmed Mufleh"]
[Black "Peter Majur Manyang"]
[Result "0-1"]
[WhiteElo "2086"]
[BlackElo "2095"]
[Annotator "NA RC"]
[PlyCount "72"]
[EventDate "2022.??.??"]
[TimeControl "60"]

1. Nf3 {[%emt 0:00:04]} f5 {[%emt 0:00:05]} 2. d4 {[%emt 0:02:11]} Nf6 {
[%emt 0:00:04]} 3. Nc3 {[%emt 0:00:37]} d5 {[%emt 0:00:21]} 4. Bg5 {[%emt 0:00:
00]} e6 {[%emt 0:00:11]} 5. e3 {[%emt 0:00:51]} Bd6 {[%emt 0:00:06]} 6. Bd3 {
[%emt 0:01:20]} O-O {[%emt 0:00:04]} 7. O-O {[%emt 0:00:41]} a6 {[%emt 0:00:00]
} 8. Ne5 {[%emt 0:01:08]} c5 {[%emt 0:00:02]} 9. f4 {[%emt 0:02:22]} Nc6 {
[%emt 0:00:12]} 10. Nxc6 {[%emt 0:02:24]} bxc6 {[%emt 0:00:02]} 11. Qf3 {
[%emt 0:06:17]} cxd4 {[%emt 0:00:18]} 12. exd4 {[%emt 0:01:59]} Qb6 {[%emt 0:
00:00]} 13. Bxf6 {[%emt 0:01:36]} Rxf6 {[%emt 0:00:02]} 14. Ne2 {[%emt 0:00:26]
} Qxb2 {[%emt 0:01:45]} 15. Rfb1 {[%emt 0:00:40]} Qa3 {[%emt 0:00:09]} 16. Rb6
{[%emt 0:04:07]} Bd7 {[%emt 0:03:22]} 17. h3 {[%emt 0:02:32]} Bc7 {[%emt 0:00:
00]} 18. Rb3 {[%emt 0:06:33]} Qd6 {[%emt 0:00:46]} 19. g3 {[%emt 0:04:11]} c5 {
[%emt 0:00:23]} 20. c4 {[%emt 0:00:47]} Bc6 {[%emt 0:00:21]} 21. Qe3 {[%emt 0:
00:00]} cxd4 {[%emt 0:04:07]} 22. Qxd4 {[%emt 0:03:38]} Re8 {[%emt 0:01:25]}
23. c5 {[%emt 0:00:33]} Qe7 {[%emt 0:00:38]} 24. Nc3 {[%emt 0:01:31]} Rg6 {
[%emt 0:00:12]} 25. Kf2 {[%emt 0:00:29]} e5 {[%emt 0:01:51]} 26. Qe3 {[%emt 0:
00:00]} d4 {[%emt 0:02:02]} 27. Qe2 {[%emt 0:02:23]} dxc3 {[%emt 0:00:17]} 28.
Bxa6 {[%emt 0:00:51]} Qxc5+ {[%emt 0:00:30]} 29. Kf1 {[%emt 0:01:50]} Rxg3 {
[%emt 0:00:44]} 30. Qc4+ {[%emt 0:00:32]} Qxc4+ {[%emt 0:00:22]} 31. Bxc4+ {
[%emt 0:00:13]} Kf8 {[%emt 0:00:01]} 32. Rc1 {[%emt 0:01:41]} Rf3+ {[%emt 0:00:
00]} 33. Kg1 {[%emt 0:01:14]} exf4 {[%emt 0:00:03]} 34. Rbxc3 {[%emt 0:00:39]}
Bb6+ {[%emt 0:00:26]} 35. Kh2 {[%emt 0:00:30]} Rf2+ {[%emt 0:00:15]} 36. Kg1 {
[%emt 0:00:10]} Rc2+ {[%emt 0:00:55]} 0-1

[Event "44th Chess Olympiad Open 2022"]
[Site "Chennai"]
[Date "2022.08.01"]
[Round "4.67"]
[White "Muhammed, Shuaau"]
[Black "Ajak Mach Duany"]
[Result "1-0"]
[WhiteElo "1987"]
[BlackElo "2029"]
[Annotator "NA RC"]
[PlyCount "102"]
[EventDate "2022.??.??"]
[TimeControl "60"]

1. e4 {[%emt 0:00:02]} c6 {[%emt 0:00:14]} 2. d4 {[%emt 0:00:01]} d5 {[%emt 0:
00:00]} 3. e5 {[%emt 0:00:03]} Bf5 {[%emt 0:00:16]} 4. h4 {[%emt 0:00:06]} h5 {
[%emt 0:00:12]} 5. Bd3 {[%emt 0:00:05]} Bxd3 {[%emt 0:00:18]} 6. Qxd3 {[%emt 0:
00:00]} e6 {[%emt 0:00:16]} 7. Bg5 {[%emt 0:00:45]} Qb6 {[%emt 0:00:28]} 8. Nd2
{[%emt 0:00:10]} c5 {[%emt 0:01:24]} 9. c4 {[%emt 0:02:22]} Qxb2 {[%emt 0:00:
00]} 10. Rd1 {[%emt 0:00:02]} Qxd4 {[%emt 0:00:38]} 11. Qb3 {[%emt 0:06:02]}
Qxe5+ {[%emt 0:00:27]} 12. Ne2 {[%emt 0:00:14]} Qc7 {[%emt 0:10:47]} 13. cxd5 {
[%emt 0:00:05]} exd5 {[%emt 0:00:11]} 14. Qxd5 {[%emt 0:01:57]} Be7 {[%emt 0:
00:00]} 15. Ne4 {[%emt 0:09:49]} Nf6 {[%emt 0:06:00]} 16. Bxf6 {[%emt 0:01:02]}
gxf6 {[%emt 0:00:24]} 17. O-O {[%emt 0:02:17]} Nd7 {[%emt 0:02:57]} 18. N2c3 {
[%emt 0:03:03]} Nb6 {[%emt 0:05:28]} 19. Qf5 {[%emt 0:03:14]} Qe5 {[%emt 0:00:
00]} 20. Qf3 {[%emt 0:08:14]} Rd8 {[%emt 0:00:21]} 21. Rde1 {[%emt 0:00:45]}
Kf8 {[%emt 0:00:13]} 22. Ng3 {[%emt 0:00:52]} Qb8 {[%emt 0:05:32]} 23. Nxh5 {
[%emt 0:11:00]} Nd7 {[%emt 0:06:34]} 24. Qg4 {[%emt 0:05:33]} Rg8 {[%emt 0:00:
00]} 25. Qf5 {[%emt 0:00:58]} Ne5 {[%emt 0:03:52]} 26. Nxf6 {[%emt 0:03:26]}
Bxf6 {[%emt 0:05:55]} 27. Qxf6 {[%emt 0:00:02]} Ng4 {[%emt 0:00:23]} 28. Qe7+ {
[%emt 0:00:08]} Kg7 {[%emt 0:00:33]} 29. Qg5+ {[%emt 0:04:22]} Kf8 {[%emt 0:00:
00]} 30. Qxc5+ {[%emt 0:06:25]} Qd6 {[%emt 0:01:26]} 31. Qxd6+ {[%emt 0:01:45]}
Rxd6 {[%emt 0:00:11]} 32. f3 {[%emt 0:08:45]} Nf6 {[%emt 0:03:29]} 33. Ne4 {
[%emt 0:00:26]} Nxe4 {[%emt 0:01:30]} 34. Rxe4 {[%emt 0:00:06]} Rh8 {[%emt 0:
00:00]} 35. Rf2 {[%emt 0:01:39]} Rh5 {[%emt 0:00:54]} 36. Kh2 {[%emt 0:00:42]}
Ra6 {[%emt 0:02:50]} 37. Kh3 {[%emt 0:00:42]} b5 {[%emt 0:00:55]} 38. g4 {
[%emt 0:02:09]} Rd5 {[%emt 0:00:18]} 39. g5 {[%emt 0:05:05]} Rb6 {[%emt 0:00:
00]} 40. Kg4 {[%emt 0:04:51]} a5 {[%emt 0:03:58]} 41. h5 {[%emt 0:30:59]} f5+ {
[%emt 0:30:55]} 42. gxf6 {[%emt 0:02:15]} Rxf6 {[%emt 0:00:14]} 43. f4 {
[%emt 0:01:17]} b4 {[%emt 0:03:27]} 44. f5 {[%emt 0:01:23]} Rb5 {[%emt 0:01:36]
} 45. Kg5 {[%emt 0:00:00]} Rbb6 {[%emt 0:00:00]} 46. Rfe2 {[%emt 0:00:00]} Kg8
{[%emt 0:00:00]} 47. Re8+ {[%emt 0:00:00]} Rf8 {[%emt 0:00:00]} 48. h6 {
[%emt 0:00:00]} Rb7 {[%emt 0:00:00]} 49. Rxf8+ {[%emt 0:00:00]} Kxf8 {[%emt 0:
00:00]} 50. Kg6 {[%emt 0:00:00]} b3 {[%emt 0:00:00]} 51. h7 {[%emt 0:00:00]}
Rg7+ {[%emt 0:00:00]} 1-0

[Event "44th Chess Olympiad Open 2022"]
[Site "Chennai"]
[Date "2022.08.01"]
[Round "4.67"]
[White "Madol Garang Panthoum"]
[Black "Mujahid Bin Yazeed"]
[Result "0-1"]
[WhiteElo "1985"]
[BlackElo "1418"]
[Annotator "NA RC"]
[PlyCount "127"]
[EventDate "2022.??.??"]
[TimeControl "60"]

1. e4 {[%emt 0:00:09]} e5 {[%emt 0:00:05]} 2. Nf3 {[%emt 0:00:54]} Nc6 {
[%emt 0:00:29]} 3. Bc4 {[%emt 0:01:49]} Bc5 {[%emt 0:00:38]} 4. O-O {[%emt 0:
00:00]} d6 {[%emt 0:00:26]} 5. c3 {[%emt 0:00:29]} Qe7 {[%emt 0:00:57]} 6. d4 {
[%emt 0:00:28]} Bb6 {[%emt 0:00:35]} 7. a4 {[%emt 0:03:04]} a6 {[%emt 0:00:18]}
8. Bg5 {[%emt 0:05:02]} Nf6 {[%emt 0:01:37]} 9. d5 {[%emt 0:04:22]} Nb8 {
[%emt 0:03:10]} 10. Nbd2 {[%emt 0:05:39]} h6 {[%emt 0:05:15]} 11. Bh4 {[%emt 0:
00:00]} Rg8 {[%emt 0:02:57]} 12. Bxf6 {[%emt 0:08:28]} Qxf6 {[%emt 0:00:32]}
13. Be2 {[%emt 0:01:18]} g5 {[%emt 0:00:23]} 14. Nc4 {[%emt 0:00:30]} Ba7 {
[%emt 0:00:29]} 15. Ne3 {[%emt 0:02:44]} Nd7 {[%emt 0:04:56]} 16. Nd2 {[%emt 0:
00:00]} Qg6 {[%emt 0:02:56]} 17. Bh5 {[%emt 0:01:38]} Qh7 {[%emt 0:01:38]} 18.
Ng4 {[%emt 0:03:18]} Qg7 {[%emt 0:02:15]} 19. Qf3 {[%emt 0:00:24]} Rf8 {
[%emt 0:06:27]} 20. Nc4 {[%emt 0:01:20]} Ke7 {[%emt 0:02:00]} 21. Nce3 {
[%emt 0:06:28]} Nf6 {[%emt 0:00:43]} 22. Nxf6 {[%emt 0:00:36]} Qxf6 {[%emt 0:
00:00]} 23. Qe2 {[%emt 0:01:55]} Qf4 {[%emt 0:25:54]} 24. Qc4 {[%emt 0:04:55]}
Bxe3 {[%emt 0:07:28]} 25. g3 {[%emt 0:01:02]} Bxf2+ {[%emt 0:00:55]} 26. Rxf2 {
[%emt 0:00:30]} Qe3 {[%emt 0:00:07]} 27. Qxc7+ {[%emt 0:03:32]} Bd7 {[%emt 0:
00:00]} 28. Bg4 {[%emt 0:00:59]} Rfd8 {[%emt 0:01:47]} 29. Bxd7 {[%emt 0:00:41]
} Rxd7 {[%emt 0:00:10]} 30. Qc4 {[%emt 0:00:16]} Kd8 {[%emt 0:04:20]} 31. Qe2 {
[%emt 0:00:35]} Qxe2 {[%emt 0:00:16]} 32. Rxe2 {[%emt 0:00:14]} Rc8 {[%emt 0:
00:00]} 33. Rf1 {[%emt 0:00:43]} Ke7 {[%emt 0:01:24]} 34. Ref2 {[%emt 0:00:27]}
Kf8 {[%emt 0:00:14]} 35. Re2 {[%emt 0:01:11]} Rc4 {[%emt 0:00:48]} 36. Ra1 {
[%emt 0:00:32]} Rdc7 {[%emt 0:00:13]} 37. Kf2 {[%emt 0:00:31]} a5 {[%emt 0:00:
00]} 38. Ke3 {[%emt 0:00:11]} Kg7 {[%emt 0:01:47]} 39. Kd3 {[%emt 0:04:42]} f5
{[%emt 0:05:00]} 40. exf5 {[%emt 0:04:54]} Kf6 {[%emt 0:01:25]} 41. Re4 {
[%emt 0:39:29]} Rxe4 {[%emt 0:32:07]} 42. Kxe4 {[%emt 0:00:04]} Rc4+ {[%emt 0:
00:00]} 43. Kd3 {[%emt 0:01:13]} Rg4 {[%emt 0:00:13]} 44. c4 {[%emt 0:01:51]}
h5 {[%emt 0:01:47]} 45. Re1 {[%emt 0:03:15]} h4 {[%emt 0:01:06]} 46. Re3 {
[%emt 0:02:42]} Kxf5 {[%emt 0:01:49]} 47. Kc3 {[%emt 0:00:44]} hxg3 {[%emt 0:
00:00]} 48. hxg3 {[%emt 0:00:01]} Re4 {[%emt 0:03:28]} 49. Rf3+ {[%emt 0:03:37]
} Kg6 {[%emt 0:02:28]} 50. Rd3 {[%emt 0:04:39]} g4 {[%emt 0:01:02]} 51. c5 {
[%emt 0:00:53]} Rb4 {[%emt 0:01:51]} 52. c6 {[%emt 0:01:22]} bxc6 {[%emt 0:00:
00]} 53. dxc6 {[%emt 0:00:02]} Rb8 {[%emt 0:00:57]} 54. Rxd6+ {[%emt 0:01:04]}
Kf5 {[%emt 0:00:15]} 55. Rd5 {[%emt 0:00:46]} Rc8 {[%emt 0:00:13]} 56. Rc5 {
[%emt 0:00:38]} Ke6 {[%emt 0:00:14]} 57. b4 {[%emt 0:00:52]} axb4+ {[%emt 0:00:
00]} 58. Kxb4 {[%emt 0:00:03]} Kd6 {[%emt 0:00:15]} 59. a5 {[%emt 0:00:58]}
Rb8+ {[%emt 0:00:41]} 60. Rb5 {[%emt 0:00:25]} Rc8 {[%emt 0:00:20]} 61. a6 {
[%emt 0:00:48]} Rxc6 {[%emt 0:00:20]} 62. a7 {[%emt 0:00:43]} Ra6 {[%emt 0:00:
00]} 63. Ra5 {[%emt 0:00:26]} Rxa7 {[%emt 0:00:11]} 64. Rxa7 {[%emt 0:00:18]}
0-1